[Event "Titled Tuesday Blitz September 20 Late 2022"]
[White "Bluebaum, Matthias"]
[Black "Bazeev, German"]
[WhiteFideId "24651516"]
[BlackFideId "24119350"]
[WhiteElo "2633"]
[BlackElo "2493"]
[Result "1-0"]
[Round "03"]
[TimeControl "180+1"]
[Date "2022.09.20"]
[WhiteClock "0:02:50"]
[BlackClock "0:01:51"]

1. d4 {[%clk 0:03:00]}  Nf6 {[%clk 0:02:59]} 2. c4 {[%clk 0:03:00]}  e6 {[%clk 0:02:59]} 3. Nc3 {[%clk 0:02:59]}  Bb4 {[%clk 0:02:58]} 4. e3 {[%clk 0:03:00]}  O-O {[%clk 0:02:57]} 5. Bd2 {[%clk 0:03:01]}  c5 {[%clk 0:02:52]} 6. a3 {[%clk 0:03:01]}  Bxc3 {[%clk 0:02:52]} 7. Bxc3 {[%clk 0:03:02]}  Ne4 {[%clk 0:02:52]} 8. Ne2 {[%clk 0:03:02]}  d6 {[%clk 0:02:48]} 9. dxc5 {[%clk 0:03:01]}  Nxc3 {[%clk 0:02:43]} 10. Nxc3 {[%clk 0:03:01]}  dxc5 {[%clk 0:02:44]} 11. Qc2 {[%clk 0:03:01]}  Nc6 {[%clk 0:02:33]} 12. Bd3 {[%clk 0:03:00]}  h6 {[%clk 0:02:31]} 13. O-O-O {[%clk 0:03:00]}  Qe7 {[%clk 0:02:27]} 14. f4 {[%clk 0:03:00]}  b6 {[%clk 0:02:16]} 15. g4 {[%clk 0:02:59]}  Bb7 {[%clk 0:02:16]} 16. Rhg1 {[%clk 0:02:59]}  Rad8 {[%clk 0:01:58]} 17. g5 {[%clk 0:02:59]}  h5 {[%clk 0:01:58]} 18. g6 {[%clk 0:02:55]}  f5 {[%clk 0:01:59]} 19. Rg5 {[%clk 0:02:51]}  Rf6 {[%clk 0:01:51]} 20. Qe2 {[%clk 0:02:50]} 1-0


[Site "https://www.chess.com"]

[Event "Titled Tuesday Blitz September 20 Late 2022"]
[White "Bok, Benjamin"]
[Black "Lizak, Peter"]
[WhiteFideId "1017063"]
[BlackFideId "731595"]
[WhiteElo "2658"]
[BlackElo "2420"]
[Result "1-0"]
[Round "03"]
[TimeControl "180+1"]
[Date "2022.09.20"]
[WhiteClock "0:00:15"]
[BlackClock "0:00:07"]

1. d4 {[%clk 0:03:00]}  Nf6 {[%clk 0:02:57]} 2. c4 {[%clk 0:03:00]}  c5 {[%clk 0:02:57]} 3. Nf3 {[%clk 0:03:00]}  cxd4 {[%clk 0:02:57]} 4. Nxd4 {[%clk 0:03:01]}  e5 {[%clk 0:02:56]} 5. Nb5 {[%clk 0:03:00]}  d6 {[%clk 0:02:57]} 6. Bg5 {[%clk 0:02:57]}  Be6 {[%clk 0:02:53]} 7. e3 {[%clk 0:02:40]}  a6 {[%clk 0:02:52]} 8. Bxf6 {[%clk 0:02:40]}  Qa5+ {[%clk 0:02:30]} 9. N5c3 {[%clk 0:02:14]}  gxf6 {[%clk 0:02:30]} 10. Be2 {[%clk 0:02:10]}  f5 {[%clk 0:02:15]} 11. O-O {[%clk 0:02:09]}  Nd7 {[%clk 0:02:11]} 12. e4 {[%clk 0:01:46]}  f4 {[%clk 0:01:58]} 13. Nd2 {[%clk 0:01:06]}  h5 {[%clk 0:01:55]} 14. Nd5 {[%clk 0:01:01]}  h4 {[%clk 0:01:38]} 15. Bg4 {[%clk 0:00:55]}  Rc8 {[%clk 0:01:20]} 16. b4 {[%clk 0:00:48]}  Qd8 {[%clk 0:01:17]} 17. Rc1 {[%clk 0:00:36]}  Qg5 {[%clk 0:01:12]} 18. h3 {[%clk 0:00:34]}  Bxg4 {[%clk 0:01:09]} 19. Qxg4 {[%clk 0:00:33]}  Qxg4 {[%clk 0:01:09]} 20. hxg4 {[%clk 0:00:34]}  Bh6 {[%clk 0:00:53]} 21. f3 {[%clk 0:00:33]}  Bg5 {[%clk 0:00:53]} 22. Kf2 {[%clk 0:00:29]}  Bd8 {[%clk 0:00:42]} 23. Rh1 {[%clk 0:00:28]}  Nb6 {[%clk 0:00:38]} 24. Ke2 {[%clk 0:00:28]}  Nxd5 {[%clk 0:00:33]} 25. exd5 {[%clk 0:00:28]}  Kd7 {[%clk 0:00:16]} 26. c5 {[%clk 0:00:28]}  a5 {[%clk 0:00:14]} 27. a3 {[%clk 0:00:26]}  axb4 {[%clk 0:00:13]} 28. axb4 {[%clk 0:00:27]}  Ra8 {[%clk 0:00:13]} 29. Ra1 {[%clk 0:00:23]}  Rxa1 {[%clk 0:00:12]} 30. Rxa1 {[%clk 0:00:24]}  h3 {[%clk 0:00:12]} 31. gxh3 {[%clk 0:00:25]}  Rxh3 {[%clk 0:00:12]} 32. Ra7 {[%clk 0:00:25]}  Rh2+ {[%clk 0:00:12]} 33. Kd3 {[%clk 0:00:25]}  dxc5 {[%clk 0:00:07]} 34. bxc5 {[%clk 0:00:24]}  Kc8 {[%clk 0:00:08]} 35. Ra8+ {[%clk 0:00:18]}  Kd7 {[%clk 0:00:08]} 36. Nc4 {[%clk 0:00:17]}  Bc7 {[%clk 0:00:07]} 37. d6 {[%clk 0:00:16]}  Rf2 {[%clk 0:00:07]} 38. Nxe5+ {[%clk 0:00:15]} 1-0


[Site "https://www.chess.com"]

[Event "Titled Tuesday Blitz September 20 Late 2022"]
[White "Bortnyk, Mykola"]
[Black "Vlassov, Nikolai"]
[WhiteFideId "14120836"]
[BlackFideId "4103360"]
[WhiteElo "2582"]
[BlackElo "2324"]
[Result "1-0"]
[Round "03"]
[TimeControl "180+1"]
[Date "2022.09.20"]
[WhiteClock "0:00:03"]
[BlackClock "0:00:01"]

1. e4 {[%clk 0:03:00]}  c5 {[%clk 0:02:59]} 2. c3 {[%clk 0:03:00]}  Nf6 {[%clk 0:02:59]} 3. e5 {[%clk 0:03:00]}  Nd5 {[%clk 0:02:59]} 4. Nf3 {[%clk 0:03:01]}  d6 {[%clk 0:02:59]} 5. Bc4 {[%clk 0:03:01]}  dxe5 {[%clk 0:02:59]} 6. Nxe5 {[%clk 0:03:01]}  e6 {[%clk 0:02:58]} 7. Qf3 {[%clk 0:02:59]}  Qf6 {[%clk 0:02:43]} 8. Qxf6 {[%clk 0:02:35]}  gxf6 {[%clk 0:02:41]} 9. Bxd5 {[%clk 0:02:29]}  exd5 {[%clk 0:02:34]} 10. Nf3 {[%clk 0:02:26]}  Bg4 {[%clk 0:02:27]} 11. d3 {[%clk 0:02:20]}  Bxf3 {[%clk 0:02:25]} 12. gxf3 {[%clk 0:02:21]}  Nc6 {[%clk 0:02:26]} 13. Bf4 {[%clk 0:02:21]}  Kd7 {[%clk 0:02:21]} 14. Rg1 {[%clk 0:02:15]}  Bd6 {[%clk 0:02:20]} 15. Bxd6 {[%clk 0:02:04]}  Kxd6 {[%clk 0:02:21]} 16. f4 {[%clk 0:02:00]}  Rhg8 {[%clk 0:02:10]} 17. Rg3 {[%clk 0:01:59]}  Ne7 {[%clk 0:02:01]} 18. Nd2 {[%clk 0:01:45]}  Nf5 {[%clk 0:02:01]} 19. Rxg8 {[%clk 0:01:40]}  Rxg8 {[%clk 0:02:02]} 20. Ke2 {[%clk 0:01:41]}  Rg2 {[%clk 0:01:51]} 21. Rh1 {[%clk 0:01:38]}  h5 {[%clk 0:01:47]} 22. h3 {[%clk 0:01:31]}  b5 {[%clk 0:01:34]} 23. Kf1 {[%clk 0:01:29]}  Rg8 {[%clk 0:01:33]} 24. Ke2 {[%clk 0:01:27]}  Re8+ {[%clk 0:01:28]} 25. Kd1 {[%clk 0:01:25]}  a5 {[%clk 0:01:28]} 26. Rg1 {[%clk 0:01:23]}  c4 {[%clk 0:01:12]} 27. dxc4 {[%clk 0:01:13]}  bxc4 {[%clk 0:01:11]} 28. Nf1 {[%clk 0:00:55]}  Re4 {[%clk 0:01:07]} 29. Ng3 {[%clk 0:00:55]}  Rxf4 {[%clk 0:01:06]} 30. Nxf5+ {[%clk 0:00:54]}  Rxf5 {[%clk 0:01:06]} 31. Ke2 {[%clk 0:00:54]}  Re5+ {[%clk 0:01:01]} 32. Kf3 {[%clk 0:00:54]}  Re8 {[%clk 0:01:00]} 33. Rg7 {[%clk 0:00:51]}  Ke6 {[%clk 0:01:00]} 34. Rg1 {[%clk 0:00:40]}  Rb8 {[%clk 0:00:59]} 35. Rb1 {[%clk 0:00:41]}  Kf5 {[%clk 0:00:59]} 36. Rd1 {[%clk 0:00:40]}  Ke5 {[%clk 0:00:57]} 37. Rb1 {[%clk 0:00:40]}  d4 {[%clk 0:00:53]} 38. cxd4+ {[%clk 0:00:39]}  Kxd4 {[%clk 0:00:54]} 39. Rd1+ {[%clk 0:00:39]}  Kc5 {[%clk 0:00:54]} 40. Rd2 {[%clk 0:00:40]}  a4 {[%clk 0:00:52]} 41. Ke4 {[%clk 0:00:36]}  Re8+ {[%clk 0:00:44]} 42. Kf5 {[%clk 0:00:36]}  a3 {[%clk 0:00:44]} 43. Kxf6 {[%clk 0:00:31]}  axb2 {[%clk 0:00:42]} 44. Rxb2 {[%clk 0:00:31]}  c3 {[%clk 0:00:42]} 45. Rb1 {[%clk 0:00:26]}  Re2 {[%clk 0:00:40]} 46. f4 {[%clk 0:00:26]}  Rf2 {[%clk 0:00:39]} 47. f5 {[%clk 0:00:21]}  Kc4 {[%clk 0:00:37]} 48. Rb7 {[%clk 0:00:20]}  c2 {[%clk 0:00:36]} 49. Rxf7 {[%clk 0:00:20]}  Kd3 {[%clk 0:00:34]} 50. Rc7 {[%clk 0:00:18]}  Rh2 {[%clk 0:00:20]} 51. a4 {[%clk 0:00:10]}  Rxh3 {[%clk 0:00:20]} 52. a5 {[%clk 0:00:11]}  Kd2 {[%clk 0:00:19]} 53. a6 {[%clk 0:00:11]}  Rc3 {[%clk 0:00:17]} 54. Rxc3 {[%clk 0:00:11]}  Kxc3 {[%clk 0:00:18]} 55. a7 {[%clk 0:00:12]}  c1=Q {[%clk 0:00:18]} 56. a8=Q {[%clk 0:00:13]}  Qh6+ {[%clk 0:00:18]} 57. Ke5 {[%clk 0:00:13]}  Qe3+ {[%clk 0:00:17]} 58. Qe4 {[%clk 0:00:13]}  Qc5+ {[%clk 0:00:16]} 59. Kf4 {[%clk 0:00:13]}  h4 {[%clk 0:00:13]} 60. Qe3+ {[%clk 0:00:10]}  Kc4 {[%clk 0:00:11]} 61. f6 {[%clk 0:00:06]}  Qd6+ {[%clk 0:00:08]} 62. Kf5 {[%clk 0:00:03]}  Qd5+ {[%clk 0:00:08]} 63. Kg6 {[%clk 0:00:03]}  Qg8+ {[%clk 0:00:08]} 64. Kf5 {[%clk 0:00:03]}  h3 {[%clk 0:00:08]} 65. Qe4+ {[%clk 0:00:02]}  Kc3 {[%clk 0:00:08]} 66. Qe3+ {[%clk 0:00:01]}  Kb2 {[%clk 0:00:07]} 67. Qe2+ {[%clk 0:00:01]}  Kb3 {[%clk 0:00:06]} 68. Qd1+ {[%clk 0:00:01]}  Kb2 {[%clk 0:00:06]} 69. Qh1 {[%clk 0:00:02]}  Qh7+ {[%clk 0:00:03]} 70. Kg5 {[%clk 0:00:02]}  h2 {[%clk 0:00:01]} 71. Qg2+ {[%clk 0:00:01]}  Kc3 {[%clk 0:00:01]} 72. Qg3+ {[%clk 0:00:01]}  Kd4 {[%clk 0:00:01]} 73. Qf4+ {[%clk 0:00:02]}  Kd5 {[%clk 0:00:01]} 74. Qf3+ {[%clk 0:00:02]}  Ke6 {[%clk 0:00:01]} 75. Qb3+ {[%clk 0:00:03]} 1-0


[Site "https://www.chess.com"]

[Event "Titled Tuesday Blitz September 20 Late 2022"]
[White "Bykhovsky, Anatoly"]
[Black "Janaszak, Dawid"]
[WhiteFideId "2806991"]
[BlackFideId "1119206"]
[WhiteElo "2540"]
[BlackElo "2165"]
[Result "1-0"]
[Round "03"]
[TimeControl "180+1"]
[Date "2022.09.20"]
[WhiteClock "0:02:02"]
[BlackClock "0:00:01"]

1. d4 {[%clk 0:03:00]}  Nf6 {[%clk 0:02:59]} 2. c4 {[%clk 0:02:59]}  g6 {[%clk 0:02:59]} 3. Nc3 {[%clk 0:02:59]}  Bg7 {[%clk 0:03:00]} 4. Nf3 {[%clk 0:02:59]}  O-O {[%clk 0:03:00]} 5. Bg5 {[%clk 0:02:59]}  h6 {[%clk 0:02:58]} 6. Bh4 {[%clk 0:02:59]}  c5 {[%clk 0:02:58]} 7. d5 {[%clk 0:02:59]}  g5 {[%clk 0:02:56]} 8. Bg3 {[%clk 0:02:59]}  d6 {[%clk 0:02:50]} 9. Nd2 {[%clk 0:02:56]}  e6 {[%clk 0:02:39]} 10. e4 {[%clk 0:02:55]}  Re8 {[%clk 0:02:35]} 11. Be2 {[%clk 0:02:53]}  exd5 {[%clk 0:02:32]} 12. cxd5 {[%clk 0:02:54]}  a6 {[%clk 0:02:24]} 13. a4 {[%clk 0:02:52]}  Nbd7 {[%clk 0:02:01]} 14. Bxd6 {[%clk 0:02:46]}  Ne5 {[%clk 0:01:34]} 15. Bxc5 {[%clk 0:02:43]}  Bg4 {[%clk 0:01:22]} 16. f3 {[%clk 0:02:39]}  Bh5 {[%clk 0:01:05]} 17. O-O {[%clk 0:02:35]}  Rc8 {[%clk 0:01:06]} 18. Bf2 {[%clk 0:02:34]}  Nfd7 {[%clk 0:00:53]} 19. Rc1 {[%clk 0:02:29]}  Qa5 {[%clk 0:00:52]} 20. Re1 {[%clk 0:02:26]}  Nc5 {[%clk 0:00:47]} 21. Nb3 {[%clk 0:02:23]}  Nxb3 {[%clk 0:00:44]} 22. Qxb3 {[%clk 0:02:24]}  g4 {[%clk 0:00:32]} 23. Bb6 {[%clk 0:02:19]}  Nxf3+ {[%clk 0:00:09]} 24. gxf3 {[%clk 0:02:16]}  gxf3 {[%clk 0:00:10]} 25. Bxa5 {[%clk 0:02:11]}  Bd4+ {[%clk 0:00:10]} 26. Kh1 {[%clk 0:02:07]}  fxe2 {[%clk 0:00:09]} 27. Nxe2 {[%clk 0:02:07]}  Bf2 {[%clk 0:00:06]} 28. Rxc8 {[%clk 0:02:04]}  Rxc8 {[%clk 0:00:06]} 29. Rf1 {[%clk 0:02:04]}  Ba7 {[%clk 0:00:01]} 30. Qg3+ {[%clk 0:02:03]}  Bg6 {[%clk 0:00:01]} 31. Nf4 {[%clk 0:02:02]} 1-0


[Site "https://www.chess.com"]

[Event "Titled Tuesday Blitz September 20 Late 2022"]
[White "Caruana, Fabiano"]
[Black "Ilkhomi, Jaloliddin"]
[WhiteFideId "2020009"]
[BlackFideId "14700948"]
[WhiteElo "2847"]
[BlackElo "1440"]
[Result "1-0"]
[Round "03"]
[TimeControl "180+1"]
[Date "2022.09.20"]
[WhiteClock "0:01:18"]
[BlackClock "0:00:02"]

1. e4 {[%clk 0:03:00]}  e6 {[%clk 0:02:56]} 2. Nc3 {[%clk 0:02:59]}  d5 {[%clk 0:02:56]} 3. d4 {[%clk 0:03:00]}  Bb4 {[%clk 0:02:56]} 4. exd5 {[%clk 0:02:58]}  exd5 {[%clk 0:02:56]} 5. Bd3 {[%clk 0:02:59]}  Ne7 {[%clk 0:02:56]} 6. Ne2 {[%clk 0:03:00]}  O-O {[%clk 0:02:56]} 7. O-O {[%clk 0:03:00]}  Nbc6 {[%clk 0:02:56]} 8. a3 {[%clk 0:03:00]}  Bxc3 {[%clk 0:02:55]} 9. bxc3 {[%clk 0:03:00]}  Bf5 {[%clk 0:02:56]} 10. Rb1 {[%clk 0:02:59]}  Rb8 {[%clk 0:02:54]} 11. Bf4 {[%clk 0:02:59]}  Qd7 {[%clk 0:02:54]} 12. h3 {[%clk 0:02:56]}  Rfe8 {[%clk 0:02:52]} 13. Qd2 {[%clk 0:02:53]}  Bxd3 {[%clk 0:02:50]} 14. cxd3 {[%clk 0:02:54]}  Ng6 {[%clk 0:02:46]} 15. Bh2 {[%clk 0:02:51]}  b6 {[%clk 0:02:44]} 16. Rfe1 {[%clk 0:02:51]}  Re7 {[%clk 0:02:42]} 17. Ng3 {[%clk 0:02:42]}  Rbe8 {[%clk 0:02:33]} 18. Nf1 {[%clk 0:02:41]}  Nd8 {[%clk 0:02:24]} 19. Rxe7 {[%clk 0:02:39]}  Qxe7 {[%clk 0:02:24]} 20. Ne3 {[%clk 0:02:37]}  c6 {[%clk 0:02:24]} 21. a4 {[%clk 0:02:35]}  Qg5 {[%clk 0:02:11]} 22. Nf1 {[%clk 0:02:19]}  Qf6 {[%clk 0:01:50]} 23. Re1 {[%clk 0:02:18]}  Ne6 {[%clk 0:01:45]} 24. Bg3 {[%clk 0:02:04]}  h5 {[%clk 0:01:43]} 25. Nh2 {[%clk 0:02:03]}  Re7 {[%clk 0:01:39]} 26. Nf3 {[%clk 0:02:02]}  h4 {[%clk 0:01:23]} 27. Be5 {[%clk 0:01:50]}  Nxe5 {[%clk 0:01:06]} 28. Rxe5 {[%clk 0:01:49]}  Kf8 {[%clk 0:00:55]} 29. Qe3 {[%clk 0:01:43]}  Nd8 {[%clk 0:00:45]} 30. c4 {[%clk 0:01:40]}  dxc4 {[%clk 0:00:41]} 31. dxc4 {[%clk 0:01:40]}  Rxe5 {[%clk 0:00:42]} 32. Nxe5 {[%clk 0:01:39]}  Qe6 {[%clk 0:00:38]} 33. Qg5 {[%clk 0:01:19]}  f6 {[%clk 0:00:07]} 34. Qxh4 {[%clk 0:01:19]}  Qxc4 {[%clk 0:00:02]} 35. Nxc4 {[%clk 0:01:18]} 1-0


[Site "https://www.chess.com"]

[Event "Titled Tuesday Blitz September 20 Late 2022"]
[White "Donchenko, Alexander"]
[Black "Souleidis, Georgios"]
[WhiteFideId "24603295"]
[BlackFideId "4206827"]
[WhiteElo "2572"]
[BlackElo "2401"]
[Result "1-0"]
[Round "03"]
[TimeControl "180+1"]
[Date "2022.09.20"]
[WhiteClock "0:01:31"]
[BlackClock "0:00:03"]

1. Nf3 {[%clk 0:03:00]}  Nf6 {[%clk 0:02:59]} 2. g3 {[%clk 0:03:01]}  g6 {[%clk 0:03:00]} 3. Bg2 {[%clk 0:03:02]}  Bg7 {[%clk 0:03:00]} 4. O-O {[%clk 0:03:02]}  O-O {[%clk 0:03:01]} 5. d4 {[%clk 0:03:03]}  d6 {[%clk 0:03:02]} 6. b3 {[%clk 0:03:03]}  e5 {[%clk 0:03:02]} 7. dxe5 {[%clk 0:03:03]}  dxe5 {[%clk 0:03:03]} 8. Ba3 {[%clk 0:03:02]}  Re8 {[%clk 0:02:27]} 9. Nc3 {[%clk 0:02:57]}  c6 {[%clk 0:01:55]} 10. Qxd8 {[%clk 0:02:53]}  Rxd8 {[%clk 0:01:56]} 11. Rad1 {[%clk 0:02:50]}  Re8 {[%clk 0:01:54]} 12. Ng5 {[%clk 0:02:46]}  Na6 {[%clk 0:01:44]} 13. Nge4 {[%clk 0:02:41]}  Nxe4 {[%clk 0:01:42]} 14. Nxe4 {[%clk 0:02:42]}  Bg4 {[%clk 0:01:26]} 15. Rd2 {[%clk 0:02:29]}  Red8 {[%clk 0:01:20]} 16. Rfd1 {[%clk 0:02:23]}  Rxd2 {[%clk 0:01:16]} 17. Rxd2 {[%clk 0:02:24]}  Be6 {[%clk 0:00:45]} 18. Be7 {[%clk 0:02:07]}  Nc7 {[%clk 0:00:30]} 19. Nf6+ {[%clk 0:02:00]}  Kh8 {[%clk 0:00:27]} 20. c4 {[%clk 0:01:56]}  Ne8 {[%clk 0:00:25]} 21. Ne4 {[%clk 0:01:55]}  h6 {[%clk 0:00:23]} 22. Nc5 {[%clk 0:01:53]}  Rb8 {[%clk 0:00:07]} 23. Nxe6 {[%clk 0:01:47]}  fxe6 {[%clk 0:00:08]} 24. Bh3 {[%clk 0:01:47]}  Bf6 {[%clk 0:00:05]} 25. Bb4 {[%clk 0:01:40]}  Ng7 {[%clk 0:00:04]} 26. Rd7 {[%clk 0:01:40]}  a6 {[%clk 0:00:02]} 27. Bd6 {[%clk 0:01:38]}  Re8 {[%clk 0:00:01]} 28. Rxb7 {[%clk 0:01:38]}  Kg8 {[%clk 0:00:01]} 29. Rb6 {[%clk 0:01:37]}  h5 {[%clk 0:00:02]} 30. Rxa6 {[%clk 0:01:35]}  Rc8 {[%clk 0:00:02]} 31. Rb6 {[%clk 0:01:33]}  g5 {[%clk 0:00:03]} 32. f3 {[%clk 0:01:32]}  Ne8 {[%clk 0:00:03]} 33. Bxe6+ {[%clk 0:01:31]} 1-0


[Site "https://www.chess.com"]

[Event "Titled Tuesday Blitz September 20 Late 2022"]
[White "Iliaguev, Nisim"]
[Black "Barash, Anton"]
[WhiteFideId "2817276"]
[BlackFideId "30935229"]
[WhiteElo "2107"]
[BlackElo "2271"]
[Result "1-0"]
[Round "03"]
[TimeControl "180+1"]
[Date "2022.09.20"]
[WhiteClock "0:02:25"]
[BlackClock "0:01:47"]

1. d4 {[%clk 0:03:00]}  Nf6 {[%clk 0:02:58]} 2. Nf3 {[%clk 0:03:00]}  g6 {[%clk 0:02:58]} 3. g3 {[%clk 0:03:01]}  Bg7 {[%clk 0:02:59]} 4. Bg2 {[%clk 0:03:02]}  O-O {[%clk 0:03:00]} 5. O-O {[%clk 0:03:03]}  d6 {[%clk 0:03:00]} 6. b3 {[%clk 0:03:03]}  a5 {[%clk 0:02:53]} 7. a4 {[%clk 0:03:02]}  c6 {[%clk 0:02:49]} 8. Bb2 {[%clk 0:03:02]}  Nbd7 {[%clk 0:02:49]} 9. c4 {[%clk 0:03:02]}  e5 {[%clk 0:02:45]} 10. dxe5 {[%clk 0:03:02]}  dxe5 {[%clk 0:02:42]} 11. Nc3 {[%clk 0:02:59]}  Re8 {[%clk 0:02:41]} 12. Ng5 {[%clk 0:02:57]}  Qb6 {[%clk 0:02:34]} 13. Nge4 {[%clk 0:02:56]}  Nc5 {[%clk 0:02:30]} 14. Nxc5 {[%clk 0:02:50]}  Qxc5 {[%clk 0:02:31]} 15. Qc2 {[%clk 0:02:49]}  Bg4 {[%clk 0:02:22]} 16. h3 {[%clk 0:02:46]}  Be6 {[%clk 0:02:18]} 17. Rad1 {[%clk 0:02:45]}  Rad8 {[%clk 0:02:16]} 18. Rxd8 {[%clk 0:02:45]}  Rxd8 {[%clk 0:02:17]} 19. Rd1 {[%clk 0:02:45]}  Rxd1+ {[%clk 0:02:13]} 20. Nxd1 {[%clk 0:02:42]}  Nd7 {[%clk 0:02:10]} 21. Nc3 {[%clk 0:02:33]}  Qb4 {[%clk 0:02:07]} 22. Ne4 {[%clk 0:02:32]}  Qe1+ {[%clk 0:02:01]} 23. Kh2 {[%clk 0:02:28]}  f5 {[%clk 0:01:47]} 24. Bc3 {[%clk 0:02:25]} 1-0


[Site "https://www.chess.com"]

[Event "Titled Tuesday Blitz September 20 Late 2022"]
[White "Jobava, Baadur"]
[Black "Maze, Sebastien"]
[WhiteFideId "13601520"]
[BlackFideId "613762"]
[WhiteElo "2582"]
[BlackElo "2430"]
[Result "1-0"]
[Round "03"]
[TimeControl "180+1"]
[Date "2022.09.20"]
[WhiteClock "0:01:29"]
[BlackClock "0:00:58"]

1. e4 {[%clk 0:03:00]}  c5 {[%clk 0:02:57]} 2. c3 {[%clk 0:02:59]}  d6 {[%clk 0:02:48]} 3. d4 {[%clk 0:02:59]}  Nf6 {[%clk 0:02:49]} 4. Bd3 {[%clk 0:02:59]}  Nc6 {[%clk 0:02:47]} 5. Ne2 {[%clk 0:02:58]}  g6 {[%clk 0:02:46]} 6. O-O {[%clk 0:02:57]}  Bg7 {[%clk 0:02:46]} 7. f3 {[%clk 0:02:56]}  O-O {[%clk 0:02:45]} 8. Be3 {[%clk 0:02:56]}  b6 {[%clk 0:02:43]} 9. Nd2 {[%clk 0:02:55]}  e5 {[%clk 0:02:29]} 10. d5 {[%clk 0:02:54]}  Ne7 {[%clk 0:02:26]} 11. a4 {[%clk 0:02:54]}  Nh5 {[%clk 0:02:24]} 12. g4 {[%clk 0:02:52]}  Nf4 {[%clk 0:02:20]} 13. Nxf4 {[%clk 0:02:50]}  exf4 {[%clk 0:02:20]} 14. Bxf4 {[%clk 0:02:51]}  f5 {[%clk 0:02:17]} 15. Nc4 {[%clk 0:02:41]}  fxe4 {[%clk 0:02:14]} 16. fxe4 {[%clk 0:02:42]}  Rxf4 {[%clk 0:02:14]} 17. Rxf4 {[%clk 0:02:42]}  g5 {[%clk 0:02:14]} 18. Rf2 {[%clk 0:02:33]}  Ba6 {[%clk 0:01:46]} 19. Ne3 {[%clk 0:02:27]}  Bxd3 {[%clk 0:01:46]} 20. Qxd3 {[%clk 0:02:28]}  Ng6 {[%clk 0:01:46]} 21. Nf5 {[%clk 0:02:27]}  Nf4 {[%clk 0:01:42]} 22. Rxf4 {[%clk 0:02:09]}  gxf4 {[%clk 0:01:42]} 23. Kg2 {[%clk 0:02:07]}  Be5 {[%clk 0:01:40]} 24. Kf3 {[%clk 0:02:06]}  a6 {[%clk 0:01:38]} 25. h4 {[%clk 0:02:05]}  Qe8 {[%clk 0:01:33]} 26. b3 {[%clk 0:01:43]}  Ra7 {[%clk 0:01:20]} 27. Ra2 {[%clk 0:01:42]}  Qc8 {[%clk 0:01:18]} 28. c4 {[%clk 0:01:40]}  Rb7 {[%clk 0:01:13]} 29. g5 {[%clk 0:01:35]}  Qb8 {[%clk 0:01:12]} 30. h5 {[%clk 0:01:31]}  b5 {[%clk 0:01:12]} 31. axb5 {[%clk 0:01:30]}  axb5 {[%clk 0:01:12]} 32. cxb5 {[%clk 0:01:31]}  Rxb5 {[%clk 0:01:10]} 33. Ra8 {[%clk 0:01:29]}  Qxa8 {[%clk 0:01:07]} 34. Qxb5 {[%clk 0:01:30]}  Qc8 {[%clk 0:00:58]} 35. Ne7+ {[%clk 0:01:29]} 1-0


[Site "https://www.chess.com"]

[Event "Titled Tuesday Blitz September 20 Late 2022"]
[White "Korchmar, Vasiliy"]
[Black "Livaic, Leon"]
[WhiteFideId "24131750"]
[BlackFideId "14531534"]
[WhiteElo "2370"]
[BlackElo "2540"]
[Result "1/2-1/2"]
[Round "03"]
[TimeControl "180+1"]
[Date "2022.09.20"]
[WhiteClock "0:00:01"]
[BlackClock "0:00:05"]

1. e4 {[%clk 0:03:00]}  e6 {[%clk 0:02:58]} 2. d4 {[%clk 0:03:00]}  d5 {[%clk 0:02:58]} 3. e5 {[%clk 0:03:01]}  c5 {[%clk 0:02:57]} 4. c3 {[%clk 0:03:01]}  Nc6 {[%clk 0:02:58]} 5. Nf3 {[%clk 0:03:02]}  Bd7 {[%clk 0:02:59]} 6. Be2 {[%clk 0:03:01]}  Nge7 {[%clk 0:02:58]} 7. Na3 {[%clk 0:03:00]}  cxd4 {[%clk 0:02:58]} 8. cxd4 {[%clk 0:03:00]}  Nf5 {[%clk 0:02:59]} 9. Nc2 {[%clk 0:03:01]}  Qb6 {[%clk 0:02:59]} 10. O-O {[%clk 0:02:54]}  Rc8 {[%clk 0:02:59]} 11. g4 {[%clk 0:02:10]}  Nfe7 {[%clk 0:02:59]} 12. Be3 {[%clk 0:02:01]}  h5 {[%clk 0:02:58]} 13. h3 {[%clk 0:01:57]}  hxg4 {[%clk 0:02:54]} 14. hxg4 {[%clk 0:01:58]}  Ng6 {[%clk 0:02:53]} 15. Kg2 {[%clk 0:01:50]}  Nb4 {[%clk 0:02:52]} 16. Nxb4 {[%clk 0:01:47]}  Bxb4 {[%clk 0:02:51]} 17. Rh1 {[%clk 0:01:35]}  Rxh1 {[%clk 0:02:50]} 18. Qxh1 {[%clk 0:01:36]}  Bb5 {[%clk 0:02:50]} 19. Bxb5+ {[%clk 0:01:22]}  Qxb5 {[%clk 0:02:50]} 20. Qh7 {[%clk 0:01:18]}  Bf8 {[%clk 0:02:24]} 21. Ng5 {[%clk 0:01:10]}  Qd3 {[%clk 0:02:20]} 22. Rh1 {[%clk 0:01:01]}  Rc2 {[%clk 0:02:17]} 23. Rh3 {[%clk 0:00:56]}  Rxb2 {[%clk 0:01:37]} 24. Qg8 {[%clk 0:00:55]}  Kd7 {[%clk 0:00:49]} 25. Qxf7+ {[%clk 0:00:55]}  Be7 {[%clk 0:00:50]} 26. Qxe6+ {[%clk 0:00:25]}  Kc7 {[%clk 0:00:50]} 27. Qxd5 {[%clk 0:00:26]}  Rb1 {[%clk 0:00:37]} 28. Rh1 {[%clk 0:00:21]}  Bxg5 {[%clk 0:00:27]} 29. Rxb1 {[%clk 0:00:17]}  Qxb1 {[%clk 0:00:11]} 30. Bxg5 {[%clk 0:00:17]}  b6 {[%clk 0:00:04]} 31. e6 {[%clk 0:00:16]}  Qe1 {[%clk 0:00:03]} 32. Qd7+ {[%clk 0:00:11]}  Kb8 {[%clk 0:00:03]} 33. Qd5 {[%clk 0:00:04]}  Qe2 {[%clk 0:00:01]} 34. Qd8+ {[%clk 0:00:03]}  Kb7 {[%clk 0:00:02]} 35. Qd5+ {[%clk 0:00:03]}  Ka6 {[%clk 0:00:02]} 36. e7 {[%clk 0:00:03]}  Qxg4+ {[%clk 0:00:02]} 37. Kf1 {[%clk 0:00:03]}  Qd1+ {[%clk 0:00:02]} 38. Kg2 {[%clk 0:00:03]}  Qg4+ {[%clk 0:00:03]} 39. Kh2 {[%clk 0:00:04]}  Qh5+ {[%clk 0:00:02]} 40. Kg3 {[%clk 0:00:04]}  Nxe7 {[%clk 0:00:03]} 41. Qc4+ {[%clk 0:00:03]}  Kb7 {[%clk 0:00:03]} 42. Bxe7 {[%clk 0:00:03]}  Qg6+ {[%clk 0:00:04]} 43. Kh2 {[%clk 0:00:03]}  Qh5+ {[%clk 0:00:02]} 44. Kg2 {[%clk 0:00:03]}  Qg4+ {[%clk 0:00:03]} 45. Kf1 {[%clk 0:00:02]}  Qd1+ {[%clk 0:00:03]} 46. Kg2 {[%clk 0:00:03]}  Qg4+ {[%clk 0:00:04]} 47. Kh2 {[%clk 0:00:03]}  Qh5+ {[%clk 0:00:05]} 48. Kg3 {[%clk 0:00:03]}  Qg6+ {[%clk 0:00:05]} 49. Kf3 {[%clk 0:00:02]}  Qf5+ {[%clk 0:00:05]} 50. Kg3 {[%clk 0:00:01]}  Qg6+ {[%clk 0:00:05]} 1/2-1/2


[Site "https://www.chess.com"]